bitfinex/quotes_SOLUSD_20240813
["timestamp","ask_amount","ask_price","bid_price","bid_amount"]
[1723517827435,13.86467429,145.93,145.87,6.6453]
[1723517827727,5.4835,145.9,145.87,6.6453]
[1723517827929,1.22467429,145.89,145.87,6.6453]
[1723517828110,40.0,145.94,145.87,6.6453]
[1723517828111,20.0,145.94,145.88,5.4838]
[1723517828312,20.0,145.94,145.87,6.6453]
[1723517828313,5.4824,145.92,145.87,12.1295]
[1723517828549,5.4824,145.92,145.87,6.6453]
[1723517828550,13.99016429,145.92,145.87,6.6453]
[1723517828737,5.4835,145.9,145.87,6.6453]
[1723517828932,6.70817429,145.89,145.87,6.6453]
[1723517829134,1.22467429,145.89,145.87,6.6453]
[1723517830536,5.4832,145.9,145.87,6.6453]
[1723517831121,12.64,145.92,145.87,6.6453]
[1723517831622,18.1224,145.92,145.87,12.1293]
[1723517831829,5.4824,145.92,145.87,12.1293]
[1723517832018,6.70707429,145.92,145.87,12.1293]
[1723517832219,19.34707429,145.92,145.87,12.1293]
[1723517832539,5.4828,145.91,145.87,12.1293]
[1723517835650,1.22467429,145.93,145.89,5.4835]
[1723517835835,41.84564648,145.99,145.92,5.4822]
[1723517835836,5.4808,145.97,145.92,5.4822]
[1723517836832,5.4808,145.97,145.93,6.2853]
[1723517837237,46.3398,145.99,145.93,6.2853]
[1723517837447,12.64,145.97,145.93,6.2853]
[1723517838049,5.481,145.96,145.93,6.2853]
[1723517842051,12.64,145.99,145.93,11.7672]
[1723517842260,65.0,145.98,145.93,11.7672]
[1723517842633,5.4806,145.97,145.93,6.2853]
[1723517843557,5.481,145.96,145.93,6.2853]
[1723517843862,18.1206,145.97,145.93,6.2853]
[1723517844459,5.4806,145.97,145.93,6.2853]
[1723517855265,5.4806,145.97,145.93,11.7672]
[1723517855659,5.4806,145.97,145.93,6.2853]
[1723517856359,5.4812,145.96,145.93,6.2853]
[1723517861867,5.4806,145.97,145.93,6.2853]
[1723517862255,5.481,145.96,145.93,6.2853]
[1723517862864,65.0,145.98,145.93,7.65574885]
[1723517862865,20.0,145.98,145.93,7.65574885]
[1723517863076,5.4802,145.98,145.94,5.4814]
[1723517863279,12.64,146.0,145.95,5.4811]
[1723517863573,5.4797,146.0,145.93,6.2853]
[1723517864153,5.4797,146.0,145.96,16.3848]
[1723517866063,13.4637438,146.02,145.96,16.3848]
[1723517866064,0.8237438,146.02,145.99,5.4795]
[1723517866655,0.8237438,146.02,146.0,5.4793]
[1723517867179,0.8237438,146.02,146.01,5.479]
[1723517867489,0.8237438,146.02,146.01,28.3981]
[1723517867772,0.8237438,146.02,146.01,22.9191]
[1723517869370,0.8237438,146.02,146.01,28.3981]
[1723517877185,0.8237438,146.02,145.98,11.8814]
[1723517877589,0.8237438,146.02,145.99,5.4797]
[1723517877888,0.8237438,146.02,146.0,5.4793]
[1723517878087,0.8237438,146.02,146.01,5.479]
[1723517879286,0.8237438,146.02,145.99,5.4795]
[1723517880783,0.8237438,146.02,145.99,19.1787]
[1723517881987,0.8237438,146.02,146.0,5.4794]
[1723517882180,6.3025438,146.02,145.98,6.4015]
[1723517883767,6.70377429,146.01,145.98,6.4015]
[1723517883972,5.4791,146.01,145.98,6.4015]
[1723517885669,6.70377429,146.01,145.98,6.4015]
[1723517885866,5.4791,146.01,145.98,6.4015]
[1723517888596,0.8237438,146.02,145.98,6.4015]
[1723517888773,0.8237438,146.02,145.99,5.4798]
[1723517889488,6.3024438,146.02,145.98,11.8815]
[1723517890877,6.3024438,146.02,145.98,25.5817]
[1723517891285,0.8237438,146.02,145.98,25.5817]
[1723517892128,0.8237438,146.02,145.99,5.4796]
[1723517892628,5.4791,146.01,145.98,20.1017]
[1723517893982,0.8237438,146.02,145.98,25.5818]
[1723517894778,6.3026438,146.02,145.98,25.5818]
[1723517895827,6.3026438,146.02,145.98,20.1017]
[1723517897478,6.3026438,146.02,145.98,25.5817]
[1723517898386,0.8237438,146.02,145.98,25.5817]
[1723517899183,0.8237438,146.02,145.99,5.4794]
[1723517903790,6.3027438,146.02,145.98,13.7002]
[1723517903983,6.3027438,146.02,145.98,19.1801]
[1723517904184,0.8237438,146.02,145.98,13.7002]
[1723517904407,0.8237438,146.02,145.99,5.4797]
[1723517904903,0.8237438,146.02,146.0,5.4794]
[1723517905403,0.8237438,146.02,145.98,13.7002]
[1723517905603,0.8237438,146.02,145.95,6.2637]
[1723517905604,2.04841809,146.02,145.95,19.9669]
[1723517905821,2.04841809,146.02,145.95,25.4479]
[1723517906015,5.4795,146.0,145.96,5.4807]
[1723517906398,0.8237438,146.02,145.95,19.9669]
[1723517906399,5.48,145.99,145.95,19.9669]
[1723517906727,5.48,145.99,145.95,13.7032]
[1723517907421,1.22467429,146.0,145.95,19.1844]
[1723517907592,18.119,146.01,145.96,5.4806]
[1723517908116,5.479,146.01,145.96,5.4806]
[1723517908485,6.70417429,146.0,145.96,5.4806]
[1723517908795,5.4795,146.0,145.96,5.4806]
[1723517910326,5.4806,145.97,145.92,5.4824]
[1723517910490,5.4806,145.97,145.93,5.482]
[1723517910689,12.64,145.99,145.94,5.4816]
[1723517910690,5.4803,145.98,145.94,5.4816]
[1723517911388,5.4799,145.99,145.95,5.4812]
[1723517911687,21.423,146.01,145.94,13.7038]
[1723517911885,20.0,146.0,145.94,13.7038]
[1723517912093,20.0,146.0,145.96,5.4808]
[1723517912519,25.4795,146.0,145.96,5.4808]
[1723517912716,26.70417429,146.0,145.96,5.4808]
[1723517912917,20.0,146.0,145.94,19.1851]
[1723517913332,45.0,145.99,145.94,19.1851]
[1723517913501,20.0,146.0,145.94,19.1851]
[1723517913821,45.0,145.99,145.94,19.1851]
[1723517914508,50.4799,145.99,145.94,19.1851]
[1723517915521,5.4806,145.97,145.94,13.7038]
[1723517917338,1.22467429,145.96,145.91,6.1559]
[1723517917617,1.22467429,145.95,145.89,16.4672]
[1723517917790,12.64,145.97,145.89,16.4672]
[1723517918119,5.481,145.96,145.91,19.189]
[1723517918304,1.22467429,145.95,145.89,21.9507]
[1723517918510,1.22467429,145.95,145.88,11.8762]
[1723517918511,13.86467429,145.95,145.88,11.8762]
[1723517918709,5.4823,145.93,145.88,11.8762]
[1723517918918,5.4814,145.95,145.88,20.1016]
[1723517919221,50.481,145.96,145.91,5.4827]
[1723517919425,25.4813,145.95,145.91,5.4827]
[1723517919927,12.76549,145.98,145.92,5.4823]
[1723517920219,5.4804,145.98,145.92,13.7055]
[1723517920426,25.4799,145.99,145.94,5.4816]
[1723517920740,20.0,145.98,145.94,5.4816]
[1723517921089,25.4802,145.98,145.94,5.4816]
[1723517921546,25.4802,145.98,145.93,5.482]
[1723517922386,5.4806,145.97,145.93,5.482]
[1723517922591,20.0,145.98,145.92,13.7055]
[1723517922832,6.70567429,145.96,145.92,13.7055]
[1723517922995,1.22467429,145.95,145.92,13.7055]
[1723517923194,1.22467429,145.95,145.92,19.1878]
[1723517923497,6.70557429,145.96,145.92,19.1878]
[1723517923787,5.4809,145.96,145.92,19.1878]
[1723517925216,1.22467429,145.95,145.92,19.1878]
[1723517925621,6.70557429,145.96,145.92,19.1878]
[1723517927246,5.4809,145.96,145.92,19.1878]
[1723517927905,6.70527429,145.97,145.92,19.1878]
[1723517928227,12.64,145.98,145.92,19.1878]
[1723517928228,18.1202,145.98,145.94,5.4816]
[1723517928735,18.1202,145.98,145.93,5.4819]
[1723517929101,5.4802,145.98,145.94,5.4815]
[1723517929525,5.4799,145.99,145.94,5.4815]
[1723517929735,20.0,145.98,145.94,5.4815]
[1723517930324,5.4794,146.0,145.96,5.4807]
[1723517931572,6.70457429,145.99,145.94,5.4813]
[1723517932107,6.70457429,145.99,145.94,19.185]
[1723517932534,5.4799,145.99,145.94,19.185]
[1723517933644,13.86467429,145.98,145.93,6.3766]
[1723517934183,5.4812,145.96,145.93,6.3766]
[1723517934721,12.64,145.98,145.93,6.3766]
[1723517934722,5.4808,145.97,145.93,6.3766]
[1723517935158,5.4809,145.96,145.93,6.3766]
[1723517935855,6.70607429,145.95,145.91,19.1895]
[1723517936360,5.4817,145.94,145.91,13.7068]
[1723517936522,1.22467429,145.93,145.91,13.7068]
[1723517936726,5.4817,145.94,145.91,13.7068]
[1723517936727,6.70637429,145.94,145.91,13.7068]
[1723517937231,1.22467429,145.94,145.91,19.1895]
[1723517939558,6.70597429,145.95,145.91,19.1895]
[1723517939768,5.4818,145.94,145.9,11.8597]
[1723517939932,5.4818,145.94,145.88,13.7091]
[1723517939933,5.4827,145.92,145.88,13.7091]
[1723517940137,6.70737429,145.92,145.88,13.7091]
[1723517941061,6.70737429,145.92,145.88,19.193]
[1723517941062,5.4827,145.92,145.88,19.193]
[1723517941568,1.22467429,145.92,145.88,19.193]
[1723517942248,1.22467429,145.92,145.88,19.1929]
[1723517942453,5.4821,145.93,145.89,5.4834]
[1723517942660,5.4816,145.95,145.9,13.7076]
[1723517942964,20.0,145.94,145.91,5.4828]
[1723517943530,25.4817,145.94,145.9,19.1907]
[1723517943932,20.0,145.94,145.91,5.4827]
[1723517944160,25.4818,145.94,145.9,19.1907]
[1723517944370,2.75309348,146.0,145.92,13.7054]
[1723517944657,5.4808,145.97,145.93,5.4819]
[1723517945376,5.4803,145.98,145.94,5.4815]
[1723517946633,5.4799,145.99,145.95,5.4813]
[1723517947255,5.4794,146.0,145.96,5.4809]
[1723517947464,5.4792,146.01,145.97,5.4805]
[1723517947671,5.4792,146.01,145.94,13.7039]
[1723517948058,5.4792,146.01,145.96,5.4808]
[1723517948363,5.4795,146.0,145.96,5.4808]
[1723517949068,5.4795,146.0,145.95,5.4812]
[1723517951267,5.4799,145.99,145.95,5.4812]
[1723517951593,12.64,145.99,145.92,5.4823]
[1723517951870,5.4808,145.97,145.92,5.4823]
[1723517952646,5.481,145.96,145.92,5.4823]
[1723517954065,5.4807,145.97,145.92,5.4823]
[1723517954649,5.4803,145.98,145.94,5.4816]
[1723517954868,5.4803,145.98,145.93,5.482]
[1723517956883,12.64,145.99,145.94,5.4815]
[1723517957174,50.4802,145.98,145.94,5.4815]
[1723517958276,5.4802,145.98,145.94,5.4815]
[1723517959342,6.70487429,145.98,145.94,5.4815]
[1723517960577,1.22467429,145.98,145.93,13.7049]
[1723517960872,12.64,145.99,145.95,5.4812]
[1723517961062,0.8237438,146.02,145.95,5.4812]
[1723517961063,12.64,146.01,145.95,5.4812]
[1723517961265,25.4795,146.0,145.96,5.4809]
[1723517961660,25.4795,146.0,145.95,19.1841]
[1723517961966,5.4799,145.99,145.95,19.1841]
[1723517963678,1.22467429,145.98,145.95,13.703]
[1723517964272,5.4799,145.99,145.95,19.1842]
[1723517964959,5.4802,145.98,145.95,13.703]
[1723517965765,5.4798,145.99,145.95,19.1843]
[1723517966087,5.4802,145.98,145.95,13.703]
[1723517966568,5.4802,145.98,145.92,13.7055]
[1723517966756,5.4802,145.98,145.94,5.4814]
[1723517966951,5.4799,145.99,145.95,5.4812]
[1723517968066,5.4806,145.97,145.91,21.4679]
[1723517968375,5.4806,145.97,145.92,0.12549]
[1723517968579,5.4803,145.98,145.92,0.12549]
[1723517969049,18.1198,145.99,145.92,0.12549]
[1723517969251,25.4795,146.0,145.95,5.481]
[1723517971080,5.4798,145.99,145.95,5.481]
[1723517971475,1.22467429,145.98,145.93,19.1866]
[1723517971682,12.64,145.99,145.94,5.4816]
[1723517973278,18.1199,145.99,145.95,5.4812]
[1723517973471,5.4799,145.99,145.95,5.4812]
[1723517977588,5.4802,145.98,145.94,5.4816]
[1723517978873,19.34457429,145.99,145.95,5.4813]
[1723517979092,18.1199,145.99,145.95,5.4813]
[1723517981080,18.1199,145.99,145.94,5.4815]
[1723517981783,5.4809,145.96,145.91,21.4679]
[1723517981988,12.64,145.97,145.91,26.9504]
[1723517982180,1.22467429,145.96,145.91,26.9504]
[1723517982381,12.64,145.97,145.91,26.9504]
[1723517982895,5.481,145.96,145.92,5.4823]
[1723517984789,5.4801,145.99,145.91,21.4679]
[1723517984982,25.4802,145.98,145.94,5.4816]
[1723517985176,5.4799,145.99,145.94,19.1854]
[1723517985387,20.0,145.98,145.94,19.1854]
[1723517985785,25.4802,145.98,145.94,19.1854]
[1723517988390,25.4802,145.98,145.91,21.4679]
[1723517988391,20.0,145.98,145.91,21.4679]
[1723517988599,12.64,145.98,145.91,21.4679]
[1723517989131,5.4806,145.97,145.93,5.4818]
[1723517993512,20.0,145.99,145.91,35.1748]
[1723517993513,20.0,145.99,145.91,34.1079]
[1723517993702,5.4802,145.98,145.94,5.4816]
[1723517994494,12.64,146.0,145.93,13.7044]
[1723517994795,5.4802,145.98,145.94,5.4816]
[1723517994999,20.0,145.99,145.94,5.4816]
[1723517995710,21.22467429,145.99,145.93,19.1863]
[1723517996207,5.4806,145.97,145.93,19.1863]
[1723517997891,5.4806,145.97,145.93,13.7044]
[1723517999287,1.22467429,145.96,145.91,21.4679]
[1723517999481,5.4821,145.93,145.91,6.1819]
[1723517999696,12.64,145.94,145.91,6.1819]
[1723517999996,1.22467429,145.93,145.91,6.1819]
[1723518000611,5.4821,145.93,145.91,6.1819]
[1723518001203,1.22467429,145.93,145.87,36.0409]
[1723518001389,13.7028,145.96,145.87,36.0409]
[1723518001390,5.4832,145.9,145.87,36.0409]
[1723518001891,5.4837,145.89,145.85,5.485]
[1723518002312,19.34787429,145.9,145.85,5.485]
[1723518002583,5.4827,145.92,145.84,6.5592]
[1723518003217,5.4821,145.93,145.85,0.25098]
[1723518003518,5.4821,145.93,145.86,0.12549]
[1723518003689,5.4821,145.93,145.89,5.4835]
[1723518003889,18.1217,145.94,145.89,5.4835]
[1723518004141,2.66484632,145.97,145.91,5.4827]
[1723518004319,12.64,145.97,145.91,5.4827]
[1723518004490,12.64,145.95,145.9,20.2669]
[1723518004698,1.22467429,145.94,145.9,20.2669]
[1723518005525,6.70637429,145.94,145.9,25.7498]
[1723518005696,16.5224,145.98,145.9,20.2669]
[1723518005894,21.22467429,145.97,145.91,5.4827]
[1723518006095,12.64,145.96,145.9,25.7498]
[1723518006428,1.22467429,145.95,145.9,25.7498]
[1723518006603,5.4813,145.95,145.9,25.7498]
[1723518006799,5.4813,145.95,145.91,5.4826]
[1723518007001,12.64,145.96,145.92,5.4823]
[1723518007205,17.75402345,146.01,145.93,5.482]
[1723518007409,12.64,146.0,145.92,13.7057]
[1723518007599,5.4799,145.99,145.94,5.4816]
[1723518008514,18.1195,146.0,145.95,5.4812]
[1723518009023,20.0,145.99,145.95,5.4812]
[1723518009212,25.4799,145.99,145.95,5.4812]
[1723518009411,25.4799,145.99,145.94,35.3081]
[1723518010127,25.4799,145.99,145.95,5.4812]
[1723518010328,20.0,145.99,145.96,11.6952]
[1723518010526,5.4794,146.0,145.96,11.6952]
[1723518010709,5.4791,146.01,145.96,11.6952]
[1723518010914,20.0,146.0,145.96,11.6952]
[1723518011113,25.4795,146.0,145.96,11.6952]
[1723518011432,25.4795,146.0,145.96,6.2145]
[1723518011636,5.4791,146.01,145.96,11.6953]
[1723518012237,5.481,145.96,145.92,6.2145]
[1723518012569,12.64,145.96,145.92,6.2145]
[1723518013106,5.482,145.93,145.9,16.1228]
[1723518013421,5.4821,145.93,145.89,5.4835]
[1723518013610,12.64,145.94,145.89,5.4835]
[1723518013932,1.22467429,145.93,145.88,25.4076]
[1723518014161,1.22467429,145.92,145.88,19.9238]
[1723518014306,13.86467429,145.92,145.88,19.9238]
[1723518014500,18.1224,145.92,145.88,19.9238]
[1723518015406,29.0045,145.97,145.88,19.9238]
[1723518015628,77.64,145.96,145.88,19.9238]
[1723518015811,77.64,145.96,145.91,5.4828]
[1723518015812,38.1209,145.96,145.91,5.4828]
[1723518016038,5.4813,145.95,145.91,5.4828]
[1723518016734,5.4813,145.95,145.9,19.1906]
[1723518018830,25.481,145.96,145.91,5.4826]
[1723518019057,5.481,145.96,145.91,5.4826]
[1723518019216,5.4806,145.97,145.92,5.4822]
[1723518020142,5.4806,145.97,145.93,5.482]
[1723518020324,5.4806,145.97,145.92,5.4823]
[1723518020530,5.481,145.96,145.91,5.4827]
[1723518020730,5.4813,145.95,145.9,19.1906]
[1723518022317,5.4808,145.97,145.92,5.4823]
[1723518023638,5.4808,145.97,145.93,5.482]
[1723518024414,5.4806,145.97,145.92,19.1879]
[1723518024938,6.70567429,145.96,145.92,19.1879]
[1723518025124,5.481,145.96,145.92,19.1879]
[1723518025441,5.4806,145.97,145.92,19.1879]
[1723518025940,5.4823,145.93,145.88,11.6981]
[1723518026244,5.4821,145.93,145.89,13.7083]
[1723518026440,31.61,145.95,145.89,5.4835]
[1723518026655,31.61,145.95,145.9,5.4831]
[1723518027562,5.4817,145.94,145.9,5.4831]
[1723518027842,5.4814,145.95,145.9,5.4831]
[1723518028054,5.4814,145.95,145.91,5.4827]
[1723518028229,31.61,145.99,145.9,13.7077]
[1723518028549,47.8755,146.01,145.89,0.25098]
[1723518028848,5.4803,145.98,145.93,5.4817]
[1723518029155,5.4806,145.97,145.93,5.4817]
[1723518031248,5.481,145.96,145.92,19.1882]
[1723518032152,1.22467429,145.95,145.89,13.7082]
[1723518032349,32.83467429,145.95,145.88,6.2145]
[1723518032531,5.4821,145.93,145.88,11.6981]
[1723518032851,5.4817,145.94,145.89,5.4834]
[1723518033030,5.4817,145.94,145.89,19.1923]
[1723518034175,5.4817,145.94,145.9,5.4831]
[1723518034355,5.4813,145.95,145.9,5.4831]
[1723518034829,5.4818,145.94,145.9,5.4831]
[1723518035225,5.4821,145.93,145.89,13.7089]
[1723518035424,5.4821,145.93,145.89,19.1924]
[1723518036643,1.22467429,145.92,145.88,6.2145]
[1723518036845,31.61,145.89,145.84,6.6149]
[1723518037068,1.22467429,145.88,145.81,6.6149]
[1723518037347,5.4844,145.87,145.81,6.6149]
[1723518038460,1.22467429,145.86,145.81,6.6149]
[1723518038632,5.4848,145.86,145.82,5.4861]
[1723518039130,18.1444,145.87,145.82,5.4861]
[1723518040151,5.4844,145.87,145.82,5.4861]
[1723518040544,65.0,145.88,145.81,12.1013]
[1723518040724,1.22467429,145.86,145.81,12.1013]
[1723518040932,1.22467429,145.85,145.81,12.1013]
[1723518041239,96.64,145.88,145.81,12.1013]
[1723518041240,5.4857,145.84,145.81,6.6149]
[1723518041436,5.4857,145.84,145.8,13.7169]
[1723518041437,5.4855,145.84,145.8,13.7169]
[1723518041625,1.22467429,145.83,145.78,6.6149]
[1723518041829,5.4864,145.82,145.78,6.6149]
[1723518042752,5.4855,145.84,145.8,5.4869]
[1723518050266,1.22467429,145.83,145.79,13.7179]
[1723518050567,6.71117429,145.82,145.78,6.6149]
[1723518051372,6.71127429,145.81,145.77,5.488]
[1723518051571,5.4866,145.81,145.77,5.488]
[1723518052275,5.4863,145.82,145.77,5.488]
[1723518052579,32.86467429,145.84,145.78,5.4876]
[1723518052580,5.4861,145.83,145.78,5.4876]
[1723518053072,5.4861,145.83,145.79,5.4873]
[1723518053371,5.4862,145.82,145.78,5.4875]
[1723518056480,1.22467429,145.85,145.75,15.1422]
[1723518056647,5.4857,145.84,145.79,5.4872]
[1723518056975,25.4858,145.83,145.79,5.4872]
[1723518057181,5.4858,145.83,145.79,5.4872]
[1723518058245,20.0,145.85,145.78,19.2065]
[1723518058246,5.4862,145.82,145.78,19.2065]
[1723518058462,5.487,145.8,145.76,5.4881]
[1723518058670,32.86467429,145.84,145.75,28.8637]
[1723518058969,32.86467429,145.84,145.75,34.3523]
[1723518058970,5.4872,145.8,145.75,34.3523]
[1723518059148,1.22467429,145.79,145.75,34.3523]
[1723518059352,5.4872,145.8,145.76,5.4884]
[1723518059946,5.4866,145.81,145.77,5.488]
[1723518060383,5.4862,145.82,145.78,5.4876]
[1723518061676,5.4862,145.82,145.77,13.7199]
[1723518061677,5.4859,145.83,145.79,5.4873]
[1723518061857,5.4855,145.84,145.8,5.4869]
[1723518062082,20.0,145.85,145.79,13.7179]
[1723518062083,5.4862,145.82,145.79,13.7179]
[1723518062875,5.4859,145.83,145.79,19.2052]
[1723518063477,20.0,145.85,145.79,13.7179]
[1723518063678,25.4847,145.86,145.79,6.1871]
[1723518063869,25.4847,145.86,145.81,19.2025]
[1723518064207,5.4851,145.85,145.81,19.2025]
[1723518064674,5.484,145.88,145.83,13.714]
[1723518064874,5.4838,145.89,145.84,5.4851]
[1723518065188,5.4832,145.9,145.85,5.4849]
[1723518065486,5.4829,145.91,145.87,5.4842]
[1723518065776,15.7246,145.96,145.87,12.66]
[1723518065984,5.481,145.96,145.91,5.4827]
[1723518066288,26.3605,145.98,145.93,5.482]
[1723518066289,5.4806,145.97,145.93,5.482]
[1723518066489,32.78797949,146.0,145.92,6.0691]
[1723518066490,17.06337949,146.0,145.92,6.0691]
[1723518066648,0.8237438,146.02,145.95,5.4812]
[1723518066850,13.4837438,146.02,145.96,5.4808]
[1723518067359,5.4794,146.0,145.95,5.4812]
[1723518068387,5.4791,146.01,145.96,5.4809]
[1723518068563,5.4791,146.01,145.95,5.4812]
[1723518068564,20.0,146.0,145.95,5.4812]
[1723518068764,25.4795,146.0,145.95,5.4812]
[1723518071594,5.4802,145.98,145.94,13.7036]
[1723518071790,6.70527429,145.97,145.92,6.0691]
[1723518072098,5.4802,145.98,145.94,5.4817]
[1723518072272,5.4798,145.99,145.94,5.4817]
[1723518072472,5.4798,145.99,145.95,5.4812]
[1723518072858,5.4798,145.99,145.94,5.4816]
[1723518073088,6.70507429,145.98,145.93,13.7046]
[1723518073262,5.4805,145.98,145.93,19.1865]
[1723518073787,5.4805,145.98,145.94,5.4816]
[1723518073974,5.4807,145.97,145.93,13.7046]
[1723518074357,5.481,145.96,145.92,11.5512]
[1723518074590,5.4806,145.97,145.92,11.5512]
[1723518074974,5.4803,145.98,145.93,5.482]
[1723518075874,1.22467429,145.97,145.92,19.7747]
[1723518076082,5.481,145.96,145.92,19.7747]
[1723518076669,5.481,145.96,145.92,25.257]
[1723518076886,5.482,145.93,145.89,13.7085]
[1723518077197,5.4813,145.96,145.91,5.4824]
[1723518077668,25.4813,145.95,145.9,5.4831]
[1723518077859,5.4819,145.94,145.89,19.1918]
[1723518078197,6.70677429,145.93,145.89,13.7085]
[1723518078492,5.4821,145.93,145.89,13.7085]
[1723518078667,5.4821,145.93,145.88,28.2836]
[1723518078885,5.4817,145.94,145.89,5.4833]
[1723518079188,20.0,145.95,145.88,22.7997]
[1723518079374,5.4821,145.93,145.89,5.4834]
[1723518079588,20.0,145.97,145.88,36.509]
[1723518079784,20.0,145.97,145.91,5.4827]
[1723518079785,50.4812,145.96,145.91,5.4827]
[1723518080083,5.4819,145.94,145.89,5.4832]
[1723518080290,5.4821,145.93,145.88,41.9929]
[1723518080780,5.4825,145.92,145.88,41.9929]
[1723518080989,5.4821,145.93,145.88,41.9929]
[1723518081173,6.70717429,145.92,145.88,41.9929]
[1723518081362,5.4825,145.92,145.88,41.9929]
[1723518083473,1.22467429,145.91,145.88,41.9929]
[1723518083874,5.4821,145.93,145.88,41.9929]
[1723518084072,1.22467429,145.92,145.88,41.9929]
[1723518084388,5.4821,145.93,145.88,41.9929]
[1723518084766,5.4821,145.93,145.89,5.4835]
[1723518085167,6.70717429,145.92,145.88,41.9928]
[1723518085367,6.70747429,145.91,145.88,6.227]
[1723518085568,1.22467429,145.9,145.88,6.227]
[1723518085791,6.70797429,145.9,145.88,6.227]
[1723518085977,5.4829,145.91,145.88,6.227]
[1723518086173,21.22467429,145.9,145.84,21.7826]
[1723518086477,5.4848,145.86,145.84,6.405]
[1723518086680,5.4851,145.85,145.8,27.2694]
[1723518086870,5.4851,145.85,145.8,11.8919]
[1723518087363,5.4859,145.83,145.8,6.405]
[1723518087667,1.22467429,145.82,145.79,13.7177]
[1723518088169,5.4855,145.84,145.79,13.7177]
[1723518088687,5.486,145.83,145.79,13.7177]
[1723518089072,5.4855,145.84,145.79,19.2049]
[1723518089260,6.71057429,145.83,145.79,13.7177]
[1723518089462,1.22467429,145.82,145.79,13.7177]
[1723518089658,1.22467429,145.82,145.77,20.8656]
[1723518089866,1.22467429,145.82,145.76,6.405]
[1723518089867,51.58,145.84,145.76,6.405]
[1723518090076,5.4881,145.77,145.73,15.7747]
[1723518090277,1.22467429,145.76,145.72,11.9915]
[1723518090524,5.4881,145.77,145.72,25.716]
[1723518090994,1.22467429,145.76,145.72,25.716]
[1723518091198,5.4889,145.75,145.7,5.4906]
[1723518091365,20.0,145.8,145.69,15.7747]
[1723518091366,31.58,145.8,145.69,15.7747]
[1723518091566,5.4881,145.77,145.72,5.4899]
[1723518091766,1.22467429,145.76,145.72,5.4899]
[1723518092097,1.22467429,145.75,145.71,19.2155]
[1723518092474,6.71357429,145.75,145.71,19.2155]
[1723518092789,1.22467429,145.74,145.71,13.7253]
[1723518092966,5.4889,145.75,145.71,19.2155]
[1723518093174,5.4885,145.76,145.71,19.2155]
[1723518093987,52.93016429,145.78,145.69,15.7747]
[1723518094213,65.37647,145.77,145.69,15.7747]
[1723518094428,1.22467429,145.76,145.69,15.7747]
[1723518094574,1.22467429,145.76,145.68,13.7285]
[1723518094575,0.12549,145.75,145.68,13.7285]
[1723518094780,5.4893,145.74,145.69,5.4908]
[1723518095092,26.71427429,145.73,145.68,13.7285]
[1723518095394,5.4899,145.72,145.68,13.7285]
[1723518095693,1.22467429,145.71,145.68,19.2199]
[1723518095885,25.4896,145.73,145.69,5.491]
[1723518096082,20.0,145.73,145.69,5.491]
[1723518096474,20.0,145.73,145.7,5.4907]
[1723518096805,20.0,145.75,145.69,5.4909]
[1723518097096,5.4894,145.74,145.69,5.4909]
[1723518097389,21.22467429,145.73,145.69,5.4909]
[1723518097964,25.4897,145.73,145.68,19.2199]
[1723518098681,25.4897,145.73,145.69,5.491]
[1723518098861,25.4897,145.73,145.68,19.2199]
[1723518099064,5.4904,145.71,145.66,5.4919]
[1723518099285,5.49,145.72,145.64,15.2023]
[1723518099468,5.49,145.72,145.65,1.35069338]